Cogmind - Beta 17 @@@ ROGUE MODE // 2026.07.15 @ 21:12:31 Player: nnnnsk Result: Destroyed by G-47 Trooper with Particle Gun Performance ------------- Evolutions (0) 0 Regions Visited (2) 400 Robots Destroyed (40) 200 Value Destroyed (579) 579 Prototype IDs (0) 0 Alien Tech Used (0) 0 Bonus (0) 0 TOTAL SCORE: 1179 Bonus ------- None Cogmind --------- Core Integrity 0/250 Matter 288/300 Energy 250/250 System Corruption 0% Temperature Warm (126) Movement Treading (160) Location -10/Mines Parts ------- > --- POWER (1) -------- Ion Engine > --- PROPULSION (2) --- Light Treads Light Treads > --- UTILITY (2) ------ Medium Storage Unit Light Armor Plating > --- WEAPON (2) ------- Medium Laser Assault Rifle > --- INVENTORY (10) --- Ion Engine Ion Engine Light Treads Light Treads Improved Terrain Scanner Seismic Detector Small Laser Light Assault Rifle Mining Laser Hammer Peak State ------------ > --- POWER ------------ Light Nuclear Core > --- PROPULSION ------- Aluminum Leg Aluminum Leg > --- UTILITY ---------- Small Storage Unit Seismic Detector > --- WEAPON ----------- Assault Rifle Assault Rifle > --- INVENTORY -------- Ion Engine Light Treads Light Treads Small Storage Unit Improved Terrain Scanner Improved Terrain Scanner Tractor Beam Small Laser [Rating: 10] Favorites ----------- Power Ion Engine Engine Ion Engine Power Core Light Nuclear Core Propulsion Light Treads Treads Light Treads Leg Aluminum Leg Utility Small Storage Unit Device Seismic Detector Storage Small Storage Unit Protection Light Armor Plating Weapon Assault Rifle Energy Gun Medium Laser Ballistic Gun Assault Rifle Special Weapon Mining Laser Impact Weapon Hammer Build | -11 -10 -10 ------- Run | Yrd Mat Min Slots Evolved . | . . . Power . | . . . Propulsion . | . . . Utility . | . . . Weapon . | . . . Parts Attached 27 | 8 18 1 Power 4 | 1 3 . Engine 3 | 1 2 . Core 1 | . 1 . Reactor . | . . . Propulsion 9 | 2 7 . Treads 2 | . 2 . Leg 7 | 2 5 . Wheel . | . . . Hover . | . . . Flight . | . . . Utility 5 | 3 2 . Device 2 | 2 . . Storage 2 | 1 1 . Processor . | . . . Hackware . | . . . Protection 1 | . 1 . Artifact . | . . . Weapon 9 | 2 6 1 Energy Gun 3 | 1 1 1 Energy Cannon . | . . . Ballistic Gun 4 | 1 3 . Ballistic Cannon . | . . . Launcher . | . . . Special Weapon 1 | . 1 . Impact Weapon 1 | . 1 . Slashing Weapon . | . . . Piercing Weapon . | . . . Special Melee Weapon . | . . . Unidentified Prototypes . | . . . Parts Lost 2 | . 2 . Power . | . . . Propulsion 1 | . 1 . Utility . | . . . Weapon 1 | . 1 . Highest Loss Streak 1 | . 1 . To Critical Strikes . | . . . Average Backups 8 | 4 8 10 Power 1 | . 1 2 Propulsion 2 | 1 2 2 Utility 2 | 1 2 2 Weapon 2 | . 1 3 Tool/Special . | . . . Unused Backups 12 | 2 2 8 Power 2 | . . 2 Propulsion 4 | 2 . 2 Utility 3 | . 2 1 Weapon 2 | . . 2 Tool/Special 1 | . . 1 Average Slot Usage (%) 99 | . 99 100 Engine 9 | . 7 14 Core 4 | . 5 . Treads 18 | . 14 28 Leg 9 | . 13 . Device 7 | . 6 11 Storage 14 | . 14 14 Protection 6 | . 7 2 Energy Gun 1 | . 1 1 Ballistic Gun 18 | . 20 14 Special Weapon 1 | . 1 . Impact Weapon 6 | . 4 12 Peak Build Rating 10 | 9 10 8 Average Rating 8 | 6 8 8 On Entrance 5 | . 8 8 Avg Prop Armor Cover (%) 5 | . 5 . Naked Turns . | . . . Heaviest Build 22 | 13 22 22 Greatest Support 40 | 20 40 40 Greatest Overweight (x) . | . . . Average Overweight (x) . | . . . Largest Inventory Capacity 10 | 8 10 10 Average Capacity 8 | 7 8 10 Most Carried 10 | 8 10 10 Average Carried 8 | 4 8 10 Final Capacity 10 | 8 10 10 Final Carried 10 | 8 10 10 Class Distribution -------------------- 77% | Mutant 22% | Scavenger-Mutant Dominant Class ---------------- Mutant | -10/Materials Mutant | -10/Mines Resources | -11 -10 -10 ----------- Run | Yrd Mat Min Matter Collected 982 | 272 595 115 Remotely . | . . . Salvage Created 1071 | 111 750 210 Parts 71 | 5 54 12 Haulers Intercepted 2 | . 2 . Recyclers Shooed . | . . . Parts Field Recycled . | . . . Retrieved Matter . | . . . Parts Self-Destructed . | . . . Prevented . | . . . Parts Restored . | . . . Kills | -11 -10 -10 ------- Run | Yrd Mat Min Combat Hostiles Destroyed 19 | . 15 4 Guns 18 | . 14 4 Classes Destroyed 10 | 2 8 . Worker 7 | . 4 3 Builder 2 | . 1 1 Tunneler 5 | 2 1 2 Hauler 2 | . 2 . Recycler 1 | 1 . . Mechanic 1 | . 1 . Operator 1 | . 1 . Watcher 2 | . 2 . Swarmer 9 | . 6 3 Grunt 10 | . 9 1 Best Kill Streak 8 | 3 8 4 Combat Bots Only 6 | . 6 3 Max Kills in Single Turn 1 | 1 1 1 Gunslinging . | . . . Exploded . | . . . Melee . | . . . Uniques/NPCs Destroyed . | . . . Combat | -11 -10 -10 -------- Run | Yrd Mat Min Hostile Shots Fired 157 | . 133 24 Missed 46 | . 40 6 Hits 111 | . 93 18 Projectile 111 | . 93 18 Critical Strikes 4 | . 3 1 Damage Taken 1127 | . 944 183 Core 258 | . 176 82 Absorbed by Shields . | . . . Core Remaining (%) 100 | 100 . . Volleys Fired 86 | 4 74 8 Largest 2 | 2 2 2 Hottest 120 | 70 120 70 Shots Fired 164 | 8 140 16 Gun 156 | 8 132 16 Cannon . | . . . Launcher . | . . . Special 8 | . 8 . Kinetic 138 | 4 126 8 Thermal 26 | 4 14 8 Explosive . | . . . Electromagnetic . | . . . Robot Hit Streak 10 | 2 8 10 Robot Miss Streak 3 | 2 3 1 Penetration Max . | . . . Secondary Targets 2 | . 2 . Max Gunslinging Chain 1 | . 1 . Shots Hit Robots 116 | 3 92 21 Core Hits 45 | 3 35 7 Critical Kills 1 | . . 1 Critical Parts Destroyed 3 | . 2 1 Critical Strikes 5 | . 2 3 Burn 1 | . . 1 Destroy 1 | . . 1 Smash 3 | . 2 1 Melee Attacks 17 | . 9 8 Impact 17 | . 9 8 Slashing . | . . . Piercing . | . . . Sneak Attacks 11 | . 4 7 Combat Hostiles . | . . . Follow-up Attacks . | . . . Damage Inflicted 1959 | 40 1379 540 Guns 1280 | 40 1065 175 Cannons . | . . . Explosions . | . . . Melee 655 | . 290 365 Ramming . | . . . Kinetic 1121 | 15 1029 77 Thermal 183 | 25 60 98 Explosive . | . . . Electromagnetic . | . . . Impact 655 | . 290 365 Slashing . | . . . Piercing . | . . . Highest Corruption . | . . . Average Corruption . | . . . Corruption Purged . | . . . Corruption Blocked . | . . . Overload Shots . | . . . Overflow Damage 318 | . 153 165 Projectiles . | . . . Explosions . | . . . Melee 318 | . 153 165 Knockbacks 3 | . 2 1 Impact 3 | . 2 1 Kinetic . | . . . Secondary . | . . . Self-Inflicted Damage . | . . . Shots . | . . . Rammed . | . . . Targets Rammed . | . . . Kicked . | . . . Crushed . | . . . Highest Temperature 117 | 18 64 117 Average Temperature 19 | 8 16 37 Received Heat Transfer 435 | . 366 69 Siege Activations . | . . . Martial Activations . | . . . Shielding Activations . | . . . Robots Disrupted . | . . . Combat Hostiles . | . . . Robots Corrupted 6 | . 3 3 Combat Hostiles 1 | . 1 . Parts Fried 12 | . 6 6 Impact Corruptions 15 | . 7 8 Robots Melted . | . . . Combat Hostiles . | . . . Parts Melted 1 | . 1 . Heat Transferred 581 | 74 137 370 Parts Sabotaged . | . . . Parts Stolen . | . . . Parts Stripped . | . . . Power Chain Reactions . | . . . Alert | -11 -10 -10 ------- Run | Yrd Mat Min Maximum Alert Level . | . . . Low Security (%) 100 | 100 100 100 Level 1 . | . . . Level 2 . | . . . Level 3 . | . . . Level 4 . | . . . Level 5 . | . . . High Security . | . . . Max Security . | . . . Peak Influence 137 | 10 137 75 Initial 4 | . . 4 Average 30 | . 39 6 Influence Increases 627 | 15 491 121 Destroy 0b10 Robot/C 380 | . 300 80 Destroy 0b10 Robot/NC 105 | 15 60 30 Destroy Leader 78 | . 68 10 Successful Hack 23 | . 23 . Destroy Structure 11 | . 10 1 Partial Spotted 15 | . 15 . Lose Combat Pursuer 15 | . 15 . Influence Decreases 556 | 15 479 62 Entered New Map 8 | . . 8 Time Decay 538 | 15 469 54 Lost Part 10 | . 10 . Squads Dispatched 2 | . 2 . Investigation 1 | . 1 . Extermination . | . . . Reinforcement 1 | . 1 . Assault . | . . . Garrison . | . . . Intercept . | . . . Searches Triggered . | . . . Construction Impeded . | . . . Haulers Reinforced . | . . . Active Scanning Responses . | . . . Cargo Convoy Interrupts . | . . . Stealth | -11 -10 -10 --------- Run | Yrd Mat Min Distress Signals . | . . . Communications Jammed . | . . . Distress Signals . | . . . Times Spotted 34 | . 29 5 Peak Tracking Total 7 | . 7 3 Tactical Retreats 1 | . 1 . Traps | -11 -10 -10 ------- Run | Yrd Mat Min Traps Triggered 1 | . 1 . Indirectly . | . . . Trap Hack Attempts . | . . . Triggered . | . . . Disarmed . | . . . Reprogrammed . | . . . Reused . | . . . Traps Extracted . | . . . Installed . | . . . Triggered . | . . . Machines | -11 -10 -10 ---------- Run | Yrd Mat Min Machines Disabled . | . . . Max in Single Turn . | . . . Machines Repaired . | . . . Machines Dismantled . | . . . Machines Sabotaged . | . . . Overloaded Fab Kills . | . . . Hacking | -11 -10 -10 --------- Run | Yrd Mat Min Machines Accessed 8 | . 8 . Terminals 7 | . 7 . Fabricators . | . . . Repair Stations 1 | . 1 . Recycling Units . | . . . Scanalyzers . | . . . Garrison Access . | . . . Total Hacks 24 | . 24 . Successful 16 | . 16 . Failed 8 | . 8 . Catastrophic 2 | . 2 . Database Lockouts . | . . . Manual 18 | . 18 . Terminals 22 | . 22 . Fabricators . | . . . Repair Stations 2 | . 2 . Recycling Units . | . . . Scanalyzers . | . . . Garrison Access . | . . . Terminal Hacks 5 | . 5 . Level Access Points 1 | . 1 . Terminal Index 1 | . 1 . Locate Traps 2 | . 2 . Zone Layout 1 | . 1 . Fabricator Hacks . | . . . Repair Station Hacks 2 | . 2 . Scan Component 2 | . 2 . Recycling Unit Hacks . | . . . Scanalyzer . | . . . Garrison Access Hacks . | . . . Unauthorized Hacks 9 | . 9 . Terminals 9 | . 9 . Botnet 3 | . 3 . Skim 6 | . 6 . Fabricators . | . . . Repair Stations . | . . . Recycling Units . | . . . Scanalyzers . | . . . Garrison Access . | . . . Data Cores Recovered . | . . . Used . | . . . Hacking Detections 7 | . 7 . Full Trace Events . | . . . Feedback Events . | . . . Feedback Blocked . | . . . Robot Schematics Acquired . | . . . Robots Built . | . . . Authchips . | . . . Time . | . . . Total Robot Build Rating . | . . . Part Schematics Acquired . | . . . Parts Built . | . . . Authchips . | . . . Time . | . . . Total Part Build Rating . | . . . Part Studies Acquired . | . . . Parts Repaired . | . . . Time . | . . . Parts Recycled . | . . . Recycled Matter . | . . . Retrieved Matter . | . . . Retrieved Components . | . . . Parts Scanalyzed . | . . . Part Schematics Acquired . | . . . Parts Damaged . | . . . Bothacking | -11 -10 -10 ------------ Run | Yrd Mat Min Used RIF Installer . | . . . Robots Hacked . | . . . Non-combat . | . . . Combat . | . . . Robot Hacks Applied . | . . . Relay Couplers Released . | . . . Fabnet Peak Effective % . | . . . Robots Rewired . | . . . Allies Hacked . | . . . Hacks Repelled . | . . . Allies | -11 -10 -10 -------- Run | Yrd Mat Min Total Allies . | . . . Largest Group . | . . . Highest-Rated Group . | . . . Highest-Rated Ally . | . . . Total Orders . | . . . Ally Attacks . | . . . Total Damage . | . . . Kills . | . . . Allies Corrupted . | . . . Allies Melted . | . . . Intel | -11 -10 -10 ------- Run | Yrd Mat Min Active Infowar (turns) 1340 | 50 792 498 Terrain 22 | 22 . . Seismic 1318 | 28 792 498 Robot Analysis Total . | . . . Derelict Logs Recovered . | . . . Drone Launches . | . . . Drone Recoveries . | . . . Exploration | -11 -10 -10 ------------- Run | Yrd Mat Min Turns Passed 2494 | 110 1791 593 Spaces Moved 1276 | 64 892 320 Core 7 | 7 . . Treads 756 | . 436 320 Legs 513 | 57 456 . Wheels . | . . . Hover . | . . . Flight . | . . . Fastest Speed 50 | 50 120 160 Average Speed 143 | 112 139 160 Slowest Speed 160 | 120 160 160 Overloaded Moves . | . . . Propulsion Burnouts . | . . . Robots Hopped . | . . . Potential Cave-ins . | . . . Cave-ins Triggered . | . . . Exploration Rate (%) 61 | 4 94 86 Regions Visited 2 Branch Regions 1 Pre-discovered Areas 4 | . 3 1 Known Exits Taken . | . . . Unknown Exits Taken 2 | 1 1 . Scrap Searched . | . . . Spaces Dug 8 | . 7 1 Terrain Destroyed 9 | . 8 1 Melee 2 | . 1 1 Projectile 7 | . 7 . AOE . | . . . Terrain Rammed . | . . . Walls Destroyed . | . . . Machines Disabled . | . . . Actions | -11 -10 -10 --------- Run | Yrd Mat Min Total 1737 | 91 1274 372 Wait 271 | 4 236 31 Move 1274 | 63 891 320 Hop . | . . . Pick Up 21 | 10 10 1 Fast Attach 15 | 7 8 . Attach 4 | . 4 . Detach 2 | . 2 . Swap 20 | 1 16 3 Drop 27 | 2 24 1 Fire 86 | 4 74 8 Melee 17 | . 9 8 Ram . | . . . Kick . | . . . Crush . | . . . Escape Stasis . | . . . Rewire . | . . . Trap . | . . . Miscellaneous . | . . . Route ------- -11/Scrapyard -10/Materials (discovered 5 exits: *Mat x3 / [*Min x2]) -10/Mines (discovered 2 exits: *Mat x2) History --------- Turn | Location | Event 12 | -11/Scrapyard | Discovered new exit (range 16) 111 | -11/Scrapyard | Entered Materials 179 | -10/Materials | Discovered new exit (range 14) 467 | -10/Materials | Discovered new exit (range 7) 597 | -10/Materials | Build established: Scavenger-Mutant 888 | -10/Materials | Core integrity fell below 50% 978 | -10/Materials | Discovered new exit (range 16) 1033 | -10/Materials | Identified exit to Materials 1166 | -10/Materials | Build established: Mutant 1274 | -10/Materials | Discovered new exit (range 16) 1371 | -10/Materials | Learned location of Mines (-9) 1539 | -10/Materials | Learned 4 Recycling zone layouts 1574 | -10/Materials | Learned Storage emergency access door positions 1598 | -10/Materials | Learned location of 1 exit from Storage 1680 | -10/Materials | Loaded intel: 2 recycling unit locations 1902 | -10/Materials | Entered Mines 1903 | -10/Mines | Learned location of Storage (-8) 2226 | -10/Mines | Discovered exit to Materials (range 8) 2267 | -10/Mines | Found a hidden stash of uninstalled traps 2477 | -10/Mines | Discovered exit to Materials (range 9) 2490 | -10/Mines | Core integrity fell below 20% 2495 | -10/Mines | Destroyed by G-47 Trooper with Particle Gun Last Messages --------------- 02335_ Wheel fried. 02335_ K-01 Serf destroyed. 02430_ S-10 Pest destroyed. 02446_ Acquired 13 matter. 02453_ R-06 Scavenger collects Lgt. Assault Rifle. 02454_ Acquired 14 matter. 02456_ Acquired 5 matter. 02457_ R-06 Scavenger collects Flight Unit. 02463_ R-06 Scavenger collects Lgt. Assault Rifle. 02467_ R-06 Scavenger collects Lgt. Ion Engine. 02468_ K-01 Serf collects debris. 02477_ EXIT=FOUND: MATERIALS 02487_ K-01 Serf collects debris. 02487_ G-34 Mercenary suffers critical hit (Destroy). 02487_ G-34 Mercenary destroyed. 02490_ G-47 Trooper suffers critical hit (Burn). 02491_ Critical hit (Burn: +37). Map ----- +----------------------------------------------------+ | ??# ###?# ?????????????????????????? | | ??# #??# ##????????????????????????? | | ??### #??# ! ##???????????????????????? | | ????# #??## #???????????????????????? | | ????# ##### #???????????????????????? | | ????# = ##??????????????????????? | | ????###### !##?????????????????????? | | ?????????# #?????????????????????? | | ?????????## #?????????????????????? | | #####?????# ##?????????????????????? | | ##????# ###??????????????????????? | | ###### #####????????????????????? | | ## # #????????????????????? | | ## = ! #????????????????????? | | ### | #????????????????????? | | #?# ###???????????????????? | | #?## ## ???????????????????? | | ###### ###### #??????????????????? | | ##?## #????# #??????????????###?? | | #??# #????# #?#??????????? #?? | | #??# #????# #?# ???????? #?? | | #??### #????# #?# ####### #?? | | ##?### #????# ### $ #?? | | #?# #????# ## * < #?? | | # #?# ###????# ####g#### #?? | | ## #?# #??????# ##?#@#???????????? | | ?# ### #?????## ### #???????????? | | ?## ## #??#### ##??????????? | | ?## ## #?## #??????????? | | ?# ## ### #??????????? | | ?# ## ## ##### ##??###????? | | ?# #"# ## ##???## ### ##???? | | ?## ## #?????# #???? | | ??#### # ##?????# #???? | | ?????# ###########??????## % = ##???? | | ?????# #?????????????????## [ ##????? | | ?????# ###??????????????? ####?????? | | ????## ##???????????? #????????? | | ???## ##????????? ????????? | | ??## ##??????# ## #???????? | | ??# #??????# ?? #???????? | | ??# #?????# ?? #???????? | | ??## #?????# ?? #???????? | | ???## #?????# ??##???????? | | ????# ##????? ???????????? | | ????# ##?????# ???????????? | | ????# ##??????+ ???????????? | | ???? ##???????+ ????????????? | | ??? ##?????????? ????????????? | | ??# #?????????????? ????????????? | +----------------------------------------------------+ Best States ------------- Heat Dissipation 25 Energy Generation 14 Energy Capacity 250 Matter Stores 300 Matter Capacity 300 Sight Range 16 Terrain Scan Range 16 Terrain Scan Density 10 Armor Coverage 150 Evasion (%) 55 Recoil Reduction 2 Item Schematics ----------------- None Robot Schematics ------------------ None Fabricated ------------ Nothing Repaired ---------- Nothing Studied --------- None Alien Tech Used ----------------- None Achievements -------------- None Challenges ------------ None Game ------ Seed GyrokineticEfficiencyJammer Manual? 0 Play Time 00:21:40 Cumulative 121.8 hours Start 2026.07.15 @ 20:42:14 End 2026.07.15 @ 21:12:31 Sessions 1 Manual Loads 0 Difficulty Rogue Special Mode None Game No. 119 Rogue 112 Adventurer 0 Explorer 7 Win Type - Total 1 Types 1/0/0/0/0/0/0/0/0/0 Lore% 36 Gallery% 45 Achievement% 36 Wizard Run 0 Options --------- Layout 1 ASCII 0 Keyboard 1 Movement Numpad Keybinds 0 Fullscreen 1 Font 32/SmallcapsGlow Map View 50x35 Zoom Use 0% Tactical HUD 1 Map Filters NONE Filters NONE Steam 1 RUN: 81a2f0b6-12a8-4620-abdc-25177ab0e14b